bitfinex/quotes_SOLUSD_20251025
["timestamp","ask_amount","ask_price","bid_price","bid_amount"]
[1761429483885,0.2,194.27,194.26,7.90106733]
[1761429484093,0.2,194.27,194.26,8.61106733]
[1761429484288,0.2,194.27,194.26,7.90106733]
[1761429484482,0.2,194.27,194.26,8.61106733]
[1761429489977,0.2,194.27,194.26,7.90106733]
[1761429491404,0.2,194.27,194.26,8.61106733]
[1761429494417,0.2,194.27,194.26,10.67042841]
[1761429496299,0.2,194.27,194.26,21.54690362]
[1761429499991,0.2,194.27,194.26,57.10690362]
[1761429508408,0.2,194.27,194.26,54.35357643]
[1761429508598,0.2,194.27,194.26,57.10690362]
[1761429511003,0.2,194.27,194.26,7.20710122]
[1761429511210,0.88,194.27,194.26,7.90106733]
[1761429512621,0.88,194.27,194.26,5.14774014]
[1761429512817,0.88,194.27,194.26,7.90106733]
[1761429514134,0.88,194.27,194.26,5.14774014]
[1761429514317,0.88,194.27,194.26,7.90106733]
[1761429515121,0.2,194.27,194.26,8.57106733]
[1761429515320,0.2,194.27,194.26,19.44754254]
[1761429515503,0.2,194.27,194.26,21.50722174]
[1761429522729,0.2,194.27,194.26,20.5161299]
[1761429526517,1e-08,194.27,194.26,20.5161299]
[1761429538044,0.2,194.32,194.29,33.75647521]
[1761429538244,0.2,194.32,194.31,1.76223535]
[1761429538846,0.2,194.32,194.31,3.82106644]
[1761429539053,0.2,194.32,194.31,8.96748196]
[1761429546462,0.2,194.32,194.31,6.90865087]
[1761429546871,0.2,194.32,194.31,7.62865087]
[1761429547759,0.2,194.32,194.31,6.90865087]
[1761429556260,0.2,194.32,194.31,7.62865087]
[1761429557078,0.2,194.32,194.31,6.90865087]
[1761429558177,0.2,194.32,194.31,18.50512608]
[1761429560057,0.2,194.32,194.31,21.62395717]
[1761429564185,0.2,194.32,194.31,18.50512608]
[1761429567893,0.2,194.35,194.31,31.37116488]
[1761429568092,0.2,194.35,194.34,1.76223535]
[1761429568390,0.2,194.35,194.34,37.30223535]
[1761429569095,0.2,194.35,194.34,42.44785642]
[1761429577176,0.86,194.35,194.34,42.44785642]
[1761429578000,0.2,194.35,194.34,42.44785642]
[1761429584716,0.2,194.35,194.34,43.43762715]
[1761429587198,0.86,194.35,194.34,43.43762715]
[1761429592016,0.2,194.35,194.34,43.43762715]
[1761429603005,0.2,194.35,194.34,40.68562107]
[1761429603206,0.2,194.35,194.34,43.43762715]
[1761429603523,0.88,194.35,194.34,43.43762715]
[1761429603708,0.2,194.35,194.34,43.43762715]
[1761429604415,0.2,194.35,194.34,44.10762715]
[1761429605403,0.2,194.35,194.34,43.43762715]
[1761429609124,0.88,194.35,194.34,43.43762715]
[1761429609321,0.88,194.35,194.34,40.68562107]
[1761429609625,0.88,194.35,194.34,43.43762715]
[1761429610919,0.88,194.35,194.28,12.86791318]
[1761429611116,0.68,194.34,194.29,2.75200608]
[1761429611613,0.68,194.34,194.28,12.86791318]
[1761429611817,6.02512631,194.34,194.29,2.75200608]
[1761429612225,0.68,194.33,194.29,2.75200608]
[1761429613243,0.68,194.33,194.3,5.14668039]
[1761429613807,0.68,194.33,194.3,7.89868647]
[1761429614023,6.02512631,194.33,194.3,5.14668039]
[1761429614220,6.02512631,194.33,194.28,5.14721021]
[1761429614419,0.68,194.32,194.28,5.14721021]
[1761429614608,8.77738257,194.32,194.28,5.14721021]
[1761429615026,0.68,194.31,194.28,5.14721021]
[1761429615219,0.68,194.31,194.28,7.89921629]
[1761429616027,0.68,194.31,194.29,2.75200608]
[1761429616225,0.68,194.33,194.3,2.75200608]
[1761429616544,8.09738257,194.33,194.32,2.75200608]
[1761429617234,8.77738257,194.33,194.32,2.75200608]
[1761429618421,8.77738257,194.33,194.31,7.898262]
[1761429618624,0.68,194.32,194.31,7.898262]
[1761429626143,0.68,194.32,194.3,7.89868647]
[1761429627536,0.68,194.32,194.31,7.8984216]
[1761429628458,0.68,194.32,194.31,5.14641552]
[1761429629432,0.68,194.32,194.3,5.14668039]
[1761429630724,0.68,194.32,194.29,5.14690166]
[1761429631143,8.97738257,194.32,194.29,5.14690166]
[1761429631739,0.66,194.31,194.29,5.14690166]
[1761429632746,0.66,194.31,194.25,15.62149124]
[1761429632949,8.29738257,194.3,194.25,15.62149124]
[1761429633151,8.29738257,194.3,194.26,2.75200608]
[1761429633354,0.66,194.29,194.26,7.89974622]
[1761429634241,0.66,194.29,194.26,5.14774014]
[1761429634547,0.66,194.29,194.24,2.75200608]
[1761429634843,0.66,194.29,194.25,2.75200608]
[1761429634844,8.29738257,194.28,194.25,2.75200608]
[1761429635242,0.66,194.27,194.25,2.75200608]
[1761429636438,0.66,194.29,194.26,7.89974622]
[1761429636644,0.66,194.32,194.28,2.75200608]
[1761429636846,8.29738257,194.32,194.29,2.75200608]
[1761429637049,0.66,194.31,194.29,2.75200608]
[1761429639367,0.66,194.31,194.28,7.89921629]
[1761429639533,0.66,194.31,194.28,5.14721021]
[1761429640454,0.66,194.31,194.28,7.89921629]
[1761429640829,8.95738257,194.31,194.28,7.89921629]
[1761429641339,0.66,194.3,194.28,7.89921629]
[1761429643240,0.66,194.3,194.28,5.14721021]
[1761429651864,0.66,194.3,194.28,6.91009842]
[1761429653970,0.66,194.3,194.27,6.91036337]
[1761429654181,0.66,194.3,194.27,7.61036337]
[1761429660248,0.66,194.3,194.27,5.14747516]
[1761429661342,0.66,194.3,194.26,5.14769074]
[1761429661859,11.02312902,194.3,194.26,5.14769074]
[1761429662254,0.72,194.29,194.26,5.14769074]
[1761429663973,0.72,194.29,194.24,2.48288821]
[1761429663974,0.72,194.29,194.25,6.91089335]
[1761429664674,0.72,194.29,194.25,7.63089335]
[1761429668156,0.72,194.29,194.27,5.14747516]
[1761429668677,15.50901366,194.34,194.27,5.14747516]
[1761429668985,4.1828227,194.33,194.28,2.48288821]
[1761429669157,3.4628227,194.32,194.28,2.48288821]
[1761429669493,0.72,194.32,194.28,2.48288821]
[1761429669654,0.72,194.31,194.28,0.72]
[1761429669974,0.72,194.31,194.27,6.91036337]
[1761429670161,0.72,194.31,194.27,7.63036337]
[1761429670656,0.72,194.31,194.27,6.91036337]
[1761429670857,0.72,194.31,194.28,0.72]
[1761429671169,0.72,194.31,194.27,6.91036337]
[1761429671474,0.72,194.31,194.27,7.63036337]
[1761429672270,0.72,194.31,194.27,6.91036337]
[1761429672771,0.72,194.31,194.27,7.63036337]
[1761429677675,0.72,194.31,194.29,5.14694528]
[1761429678981,0.72,194.31,194.27,7.63036337]
[1761429679456,0.72,194.31,194.27,6.91036337]
[1761429679781,0.72,194.31,194.28,0.72]
[1761429680766,0.72,194.31,194.27,5.82747516]
[1761429684164,0.72,194.31,194.28,5.82702462]
[1761429684369,6.90856386,194.34,194.28,5.82702462]
[1761429684679,4.11422998,194.33,194.29,0.68]
[1761429684986,3.46422998,194.32,194.29,0.68]
[1761429685164,0.65,194.33,194.29,0.68]
[1761429685477,3.46421726,194.32,194.29,0.68]
[1761429685786,0.65,194.33,194.29,5.826775]
[1761429685963,3.46425289,194.32,194.29,5.826775]
[1761429686162,0.65,194.33,194.29,5.826775]
[1761429686376,3.46425344,194.32,194.29,5.826775]
[1761429686585,0.65,194.33,194.29,5.826775]
[1761429686784,3.46430791,194.32,194.29,5.826775]
[1761429686970,0.65,194.33,194.29,5.826775]
[1761429687165,3.46430584,194.32,194.29,5.826775]
[1761429687377,0.65,194.33,194.29,5.826775]
[1761429687574,3.46432073,194.32,194.29,5.826775]
[1761429687793,0.65,194.33,194.29,5.826775]
[1761429687990,3.46432225,194.32,194.29,5.826775]
[1761429688162,0.65,194.33,194.29,5.826775]
[1761429688364,3.46433416,194.32,194.29,5.146775]
[1761429688662,0.65,194.33,194.3,0.68]
[1761429688862,3.46433138,194.32,194.29,5.146775]
[1761429689088,0.65,194.33,194.29,5.146775]
[1761429689283,3.46429066,194.32,194.29,5.146775]
[1761429689482,0.65,194.33,194.29,5.146775]
[1761429689483,0.65,194.33,194.29,5.826775]
[1761429689695,3.46433021,194.32,194.29,5.826775]
[1761429689865,0.65,194.33,194.29,5.826775]
[1761429690190,3.46433257,194.32,194.29,5.826775]
[1761429690491,0.65,194.33,194.29,5.826775]
[1761429690708,3.46434335,194.32,194.29,5.826775]
[1761429690994,0.65,194.33,194.29,5.826775]
[1761429691177,3.46434513,194.32,194.29,5.826775]
[1761429691476,0.65,194.33,194.29,5.826775]
[1761429691785,3.46435817,194.32,194.29,5.826775]
[1761429691987,0.65,194.33,194.29,5.826775]
[1761429692287,3.46435549,194.32,194.29,5.826775]
[1761429692492,0.65,194.33,194.29,5.826775]
[1761429692664,3.4643643,194.32,194.29,5.826775]
[1761429692863,0.65,194.33,194.29,5.826775]
[1761429693060,3.46435757,194.32,194.29,5.826775]
[1761429693280,8.03189954,194.34,194.28,19.77812395]
[1761429693484,2.88622389,194.35,194.28,19.77812395]
[1761429693485,0.2,194.35,194.33,1.76288821]
[1761429693666,0.2,194.35,194.34,1.76288821]
[1761429693864,0.2,194.35,194.31,1.76288821]
[1761429694389,0.2,194.35,194.32,0.68]
[1761429694772,0.85,194.35,194.32,0.68]
[1761429694978,0.85,194.35,194.3,1.76288821]
[1761429695188,0.65,194.34,194.29,8.8704054]
[1761429695402,0.65,194.34,194.29,5.14686963]
[1761429697066,0.65,194.34,194.29,5.82686963]
[1761429700091,0.65,194.34,194.3,2.44288821]
[1761429700392,0.85,194.35,194.3,2.44288821]
[1761429700591,0.85,194.35,194.31,0.68]
[1761429701397,0.65,194.34,194.31,0.68]
[1761429701595,0.2,194.35,194.32,1.76288821]
[1761429701984,0.2,194.35,194.33,0.68]
[1761429705981,0.2,194.35,194.33,2.44288821]
[1761429706704,0.2,194.35,194.33,3.43270265]
[1761429712195,0.2,194.35,194.34,3.47270265]
[1761429712701,0.2,194.35,194.34,0.72]
[1761429713009,0.2,194.35,194.33,2.75270265]
[1761429713309,0.86,194.35,194.33,2.75270265]
[1761429714805,0.2,194.35,194.33,3.47270265]
[1761429726311,0.2,194.35,194.34,0.72]
[1761429727098,0.2,194.35,194.33,2.75270265]
[1761429727299,0.2,194.35,194.33,3.47270265]
[1761429728409,6.20485255,194.35,194.33,3.47270265]
[1761429729929,0.2,194.35,194.33,3.47270265]
[1761429731604,6.60485255,194.35,194.33,3.47270265]
[1761429732720,0.67,194.34,194.3,0.72]
[1761429732922,0.67,194.34,194.3,3.47270265]
[1761429733121,10.05758001,194.33,194.29,2.75270265]
[1761429733323,0.67,194.32,194.3,2.75270265]
[1761429733507,6.60485255,194.33,194.3,2.75270265]
[1761429733707,7.27485255,194.33,194.3,2.75270265]
[1761429735830,7.27485255,194.33,194.29,5.86680804]
[1761429736020,4.12342292,194.32,194.27,5.14732051]
[1761429736220,3.45342292,194.31,194.27,5.14732051]
[1761429736450,3.45342292,194.31,194.24,35.75025451]
[1761429736451,3.45342292,194.3,194.24,2.75270265]
[1761429736732,3.45342292,194.3,194.12,0.1]
[1761429736733,13.62917786,194.25,194.15,0.72]
[1761429736920,13.62917786,194.25,194.13,0.72]
[1761429736921,7.08310396,194.22,194.13,0.72]
[1761429737123,2.75270265,194.2,194.13,3.47270265]
[1761429737424,2.75270265,194.14,194.12,0.1]
[1761429737628,39.06003749,194.14,194.12,0.1]
[1761429737821,35.62,194.14,194.12,2.85270265]
[1761429738021,35.62,194.14,194.12,0.1]
[1761429738221,2.85270265,194.13,194.12,0.1]
[1761429738939,3.52270265,194.13,194.12,0.1]
[1761429739834,2.85270265,194.13,194.12,0.1]
[1761429740056,4.33040131,194.29,194.12,8.72415535]
[1761429740357,0.66,194.27,194.13,0.66]
[1761429740511,2.75270265,194.23,194.17,2.75270265]
[1761429740713,30.56224004,194.24,194.17,2.75270265]
[1761429741023,22.88,194.19,194.12,8.10440947]
[1761429741219,22.88,194.19,194.12,0.1]
[1761429741220,35.72,194.18,194.12,0.1]
[1761429741420,0.66,194.17,194.12,0.1]
[1761429741626,2.75270265,194.15,194.12,0.1]
[1761429742016,0.66,194.14,194.12,0.1]
[1761429742652,4.17270265,194.17,194.12,2.85270265]
[1761429742815,4.17270265,194.17,194.13,2.75270265]
[1761429743441,4.17270265,194.17,194.12,3.51270265]
[1761429744140,4.17270265,194.17,194.13,0.66]
[1761429744648,38.49270265,194.18,194.13,0.66]
[1761429744846,39.15270265,194.18,194.13,0.66]
[1761429745016,22.88,194.15,194.12,0.1]
[1761429745215,25.63270265,194.15,194.12,0.1]
[1761429745411,23.54,194.15,194.12,0.1]
[1761429745614,22.88,194.15,194.12,0.1]
[1761429745830,0.66,194.14,194.12,0.1]
[1761429746034,23.54,194.15,194.12,0.1]
[1761429746417,4.33040131,194.25,194.12,0.1]
[1761429746418,0.66,194.24,194.14,2.75270265]
[1761429746616,0.66,194.24,194.2,2.75270265]
[1761429746829,10.87647521,194.25,194.22,2.75270265]
[1761429747029,0.66,194.24,194.22,2.75270265]
[1761429750242,5.14801829,194.25,194.22,2.75270265]
[1761429750439,5.80801829,194.25,194.22,2.75270265]
[1761429752036,5.14801829,194.25,194.22,2.75270265]
[1761429752241,0.66,194.24,194.21,2.75270265]
[1761429752743,0.66,194.24,194.16,5.15014905]
[1761429752744,10.87647521,194.23,194.19,2.75270265]
[1761429752952,35.82,194.22,194.18,2.75270265]
[1761429753139,36.48,194.22,194.18,2.75270265]
[1761429753452,0.66,194.21,194.19,2.75270265]
[1761429753746,40.96880191,194.22,194.19,2.75270265]
[1761429753953,41.62880191,194.22,194.2,2.75270265]
[1761429754328,36.48,194.22,194.2,2.75270265]
[1761429754523,36.48,194.22,194.16,5.15037204]
[1761429754524,35.82,194.22,194.21,3.41270265]
[1761429755262,5.80668039,194.3,194.21,3.41270265]
[1761429755561,26.7,194.3,194.27,2.75270265]
[1761429755771,22.88,194.28,194.27,2.75270265]
[1761429756268,22.88,194.27,194.26,2.75270265]
[1761429756652,23.54,194.27,194.24,2.75270265]
[1761429756861,59.36,194.27,194.24,2.75270265]
[1761429757052,58.7,194.27,194.21,0.66]
[1761429757366,0.66,194.26,194.21,2.75270265]
[1761429757534,4.07223734,194.26,194.21,2.75270265]
[1761429757738,5.14800514,194.25,194.21,2.75270265]
[1761429757964,35.82,194.24,194.21,2.75270265]
[1761429758764,36.48,194.24,194.21,2.75270265]
[1761429759264,36.48,194.24,194.2,2.75270265]
[1761429759463,35.82,194.24,194.21,2.75270265]
[1761429759658,35.82,194.24,194.21,3.41270265]
[1761429759962,35.82,194.24,194.21,2.75270265]
[1761429760369,35.82,194.24,194.22,3.41270265]
[1761429760862,22.88,194.31,194.23,3.41270265]
[1761429761037,58.7,194.31,194.26,2.75270265]
[1761429761238,22.88,194.27,194.22,3.41270265]
[1761429761444,58.7,194.27,194.22,2.75270265]
[1761429761642,0.66,194.26,194.21,2.75270265]
[1761429761871,0.66,194.26,194.21,7.90166987]
[1761429762067,0.66,194.26,194.21,8.56166987]
[1761429762244,0.66,194.26,194.22,2.54372959]
[1761429763268,5.80774753,194.26,194.22,2.54372959]
[1761429763765,0.66,194.25,194.22,2.54372959]
[1761429763970,35.82,194.24,194.22,2.54372959]
[1761429764851,35.82,194.24,194.21,2.54372959]
[1761429766165,35.82,194.24,194.21,7.69274925]
[1761429766764,0.66,194.31,194.23,1.62796379]
[1761429766966,33.18,194.3,194.28,1.62796379]
[1761429767167,33.18,194.29,194.28,1.62796379]
[1761429767345,35.82,194.29,194.28,1.62796379]
[1761429767948,35.82,194.29,194.27,1.62796379]
[1761429771955,35.82,194.29,194.26,7.43565397]
[1761429772472,0.68,194.28,194.23,7.48647368]
[1761429772976,5.14774014,194.26,194.2,2.33796379]
[1761429773161,36.48,194.25,194.2,1.62796379]
[1761429773361,36.48,194.25,194.19,5.14958894]
[1761429773362,0.68,194.24,194.19,1.62796379]
[1761429773676,35.8,194.25,194.22,1.62796379]
[1761429773853,0.68,194.27,194.18,5.14983181]
[1761429774058,0.68,194.27,194.26,1.62796379]
[1761429774059,22.88,194.27,194.26,1.62796379]
[1761429774272,58.68,194.29,194.23,0.71]
[1761429774480,22.88,194.27,194.23,0.71]
[1761429774658,35.8,194.29,194.26,1.62796379]
[1761429774859,35.8,194.29,194.18,18.02448419]
[1761429774860,2.68661969,194.32,194.27,0.71]
[1761429775060,35.30618214,194.32,194.29,1.62796379]
[1761429775265,4.10273722,194.31,194.28,1.62796379]
[1761429775763,3.42273722,194.31,194.27,1.62796379]
[1761429775960,4.10273722,194.31,194.28,1.62796379]
[1761429776160,0.68,194.31,194.28,1.62796379]
[1761429776359,3.42505355,194.31,194.29,1.62796379]
[1761429776576,35.30618214,194.32,194.29,1.62796379]
[1761429776784,3.42504423,194.31,194.29,1.62796379]
[1761429776954,3.4250721,194.31,194.29,1.62796379]
[1761429777278,3.4250721,194.31,194.27,0.71]
[1761429777279,35.30618214,194.32,194.28,1.62796379]
[1761429777452,4.10624401,194.31,194.27,1.62796379]
[1761429777652,4.10624401,194.31,194.26,2.33796379]
[1761429778771,30.16,194.32,194.28,1.62796379]
[1761429779164,30.16,194.32,194.29,2.33796379]
[1761429779367,30.16,194.32,194.3,1.62796379]
[1761429780468,41.18536233,194.35,194.31,2.30796379]
[1761429780663,3.43043264,194.34,194.32,1.62796379]
[1761429780989,41.18536233,194.35,194.31,0.68]
[1761429780990,3.43043264,194.33,194.31,0.68]
[1761429781163,3.43043264,194.34,194.31,2.30796379]
[1761429781368,3.4301303,194.34,194.31,2.30796379]
[1761429781556,4.1301303,194.34,194.31,1.62796379]
[1761429782075,22.88,194.3,194.23,0.68]
[1761429782376,35.84,194.29,194.27,1.62796379]
[1761429782766,35.84,194.29,194.26,1.62796379]
[1761429782979,0.7,194.28,194.25,1.62796379]
[1761429783178,4.12962568,194.28,194.24,1.62796379]
[1761429783371,0.7,194.28,194.25,1.62796379]
[1761429783679,0.7,194.28,194.23,0.68]
[1761429783863,0.7,194.27,194.25,1.62796379]
[1761429784068,5.14722404,194.28,194.25,1.62796379]
[1761429784261,9.27889952,194.28,194.25,1.62796379]
[1761429785581,9.27889952,194.28,194.24,1.62796379]
[1761429786484,4.13167548,194.27,194.23,1.62796379]
[1761429786674,35.84,194.26,194.23,1.62796379]
[1761429786978,35.84,194.26,194.25,1.62796379]
[1761429787768,35.84,194.26,194.24,1.62796379]
[1761429788365,35.84,194.28,194.25,2.30796379]
[1761429788584,3.43491401,194.27,194.22,0.68]
[1761429788884,3.43491401,194.26,194.21,1.62796379]
[1761429789069,35.86,194.25,194.2,1.62796379]
[1761429789267,35.86,194.25,194.21,1.62796379]
[1761429789480,35.86,194.25,194.21,2.30796379]
[1761429789684,36.56,194.25,194.21,2.30796379]
[1761429790371,41.7080066,194.25,194.21,2.30796379]
[1761429791704,1.62796379,194.23,194.16,2.30796379]
[1761429791869,4.14022949,194.24,194.15,1.62796379]
[1761429791870,51.78466849,194.22,194.15,1.62796379]
[1761429792070,3.44022949,194.21,194.15,1.62796379]
[1761429792308,3.44022949,194.2,194.15,1.62796379]
[1761429792604,35.86,194.19,194.16,1.62796379]
[1761429792779,35.86,194.19,194.16,2.30796379]
[1761429794405,3.43731508,194.18,194.15,1.62796379]
[1761429794689,5.14986095,194.18,194.14,2.30796379]
[1761429794891,5.14986095,194.18,194.14,0.68]
[1761429795390,8.58624139,194.18,194.14,0.68]
[1761429795985,5.14986095,194.18,194.14,0.68]
[1761429796292,22.88,194.14,194.12,0.1]
[1761429796470,62.1745216,194.14,194.12,0.1]
[1761429796800,63.89103317,194.14,194.12,0.1]
[1761429798801,0.7,194.13,194.12,0.1]
[1761429798975,63.89103317,194.14,194.12,0.1]
[1761429798976,66.21899696,194.14,194.12,0.1]
[1761429799180,64.59103317,194.14,194.12,0.1]
[1761429800197,63.89101701,194.14,194.12,0.1]
[1761429800392,64.55101701,194.14,194.12,0.1]
[1761429800597,5.81118734,194.13,194.12,0.1]
[1761429801389,16.68766255,194.13,194.12,0.1]
[1761429801591,18.31562634,194.13,194.12,0.1]
[1761429801903,16.68766255,194.13,194.12,0.1]
[1761429802500,18.31562634,194.13,194.12,0.1]
[1761429802709,16.68766255,194.13,194.12,0.1]
[1761429802874,5.15118734,194.13,194.12,0.1]
[1761429807286,5.14800514,194.25,194.12,0.81]
[1761429807604,0.66,194.22,194.12,0.81]
[1761429807908,23.54,194.22,194.17,1.62796379]
[1761429808305,36.7,194.21,194.16,1.62796379]
[1761429808503,36.7,194.21,194.17,1.62796379]
[1761429808704,36.7,194.21,194.17,2.33796379]
[1761429809208,5.14933058,194.2,194.17,2.33796379]
[1761429809408,5.80933058,194.2,194.16,1.62796379]
[1761429809792,5.80933058,194.2,194.16,0.71]
[1761429810005,0.66,194.19,194.15,1.62796379]
[1761429810192,36.04,194.18,194.14,1.62796379]
[1761429810597,36.7,194.18,194.14,1.62796379]
[1761429810907,36.7,194.18,194.14,2.33796379]
[1761429811106,36.04,194.18,194.14,2.33796379]
[1761429811294,5.15012617,194.17,194.14,2.33796379]
[1761429812290,5.15012617,194.17,194.14,0.71]
[1761429813100,5.15012617,194.17,194.12,1.72796379]
[1761429813306,5.15012617,194.17,194.14,0.71]
[1761429813604,22.88,194.14,194.12,0.1]
[1761429813809,36.02,194.13,194.12,0.1]
[1761429815583,41.17118734,194.13,194.12,0.1]
[1761429817811,36.02,194.13,194.12,0.1]
[1761429818198,41.17118734,194.13,194.12,0.1]
[1761429820309,36.02,194.13,194.12,0.81]
[1761429820513,5.14959575,194.19,194.12,2.43796379]
[1761429820688,38.30796379,194.18,194.12,0.81]
[1761429820893,61.18796379,194.18,194.12,0.81]
[1761429821124,2.28796379,194.17,194.12,0.81]
[1761429821417,5.15039142,194.16,194.12,0.81]
[1761429821727,36.04,194.15,194.12,0.81]
[1761429822821,5.15092201,194.14,194.12,0.81]
[1761429824717,8.57733724,194.14,194.12,0.81]
[1761429824915,0.66,194.13,194.12,0.1]
[1761429825491,2.28796379,194.13,194.12,0.1]
[1761429825694,25.16796379,194.13,194.12,0.1]
[1761429825897,25.16796379,194.13,194.11,0.1]
[1761429825898,33.75647521,194.12,194.11,0.1]
[1761429826094,75.51085423,194.12,194.11,1e-08]
[1761429827189,80.66230693,194.12,194.11,1e-08]
[1761429828908,81.58390915,194.12,194.11,1e-08]
[1761429829613,81.60390915,194.12,194.11,1e-08]
[1761429830615,45.54390915,194.12,194.11,1e-08]
[1761429830821,81.59390915,194.12,194.11,1e-08]
[1761429833322,80.94390915,194.12,194.11,1e-08]
[1761429834538,44.61786793,194.12,194.11,0.66000001]
[1761429834703,67.49786793,194.12,194.11,0.66000001]
[1761429835016,67.49786793,194.12,194.11,1e-08]
[1761429835218,67.49786793,194.12,194.11,0.66000001]
[1761429835219,3.42641523,194.12,194.11,0.66000001]
[1761429835522,39.46641523,194.12,194.11,0.66000001]
[1761429836505,6.81486268,194.18,194.11,3.20956602]
[1761429836734,3.44146047,194.17,194.15,2.54956601]
[1761429837027,39.48146047,194.16,194.15,2.54956601]
[1761429837526,36.04,194.16,194.15,2.54956601]
[1761429837827,36.04,194.16,194.15,3.20956601]
[1761429839519,28.02986095,194.18,194.15,3.20956601]
[1761429839719,36.04,194.17,194.16,0.66]
[1761429841144,5.14976482,194.19,194.16,3.20956601]
[1761429841447,36.04,194.18,194.16,0.66]
[1761429841730,3.44291369,194.17,194.16,0.71]
[1761429841917,3.44291369,194.17,194.13,2.54956601]
[1761429842114,3.44247429,194.16,194.14,0.71]
[1761429842318,3.44265875,194.17,194.14,3.25956601]
[1761429842511,41.18995153,194.18,194.15,2.54956601]
[1761429842728,3.44264599,194.17,194.15,3.25956601]
[1761429842928,41.18995153,194.18,194.15,3.25956601]
[1761429843131,3.4426963,194.17,194.15,3.25956601]
[1761429843311,41.18995153,194.18,194.15,0.71]
[1761429843513,3.44247335,194.17,194.15,0.71]
[1761429843736,41.18995153,194.18,194.15,0.71]
[1761429844032,8.59261051,194.17,194.15,0.71]
[1761429844211,5.15013922,194.17,194.15,0.71]
[1761429844411,5.15013922,194.17,194.15,3.25956601]
[1761429845132,8.59203678,194.17,194.15,3.25956601]
[1761429847533,5.15013922,194.17,194.15,3.25956601]
[1761429847732,8.59173035,194.17,194.15,3.25956601]
[1761429848034,5.15013922,194.17,194.15,3.25956601]
[1761429849928,5.15013922,194.17,194.11,1e-08]
[1761429849929,2.68833719,194.2,194.16,3.25956601]
[1761429850141,33.92,194.21,194.19,2.54956601]
[1761429850322,36.0,194.21,194.19,2.54956601]
[1761429850524,36.0,194.21,194.15,5.15060413]
[1761429850525,36.0,194.21,194.2,3.25956601]
[1761429853135,41.14906544,194.21,194.2,0.71]
[1761429853322,36.0,194.21,194.2,0.71]
[1761429855220,36.0,194.21,194.19,2.54956601]
[1761429855427,36.0,194.21,194.19,3.25956601]
[1761429855628,36.0,194.21,194.2,0.71]
[1761429855833,36.0,194.21,194.19,2.54956601]
[1761429856140,41.14907098,194.21,194.19,3.25956601]
[1761429857924,41.14907098,194.21,194.2,0.71]
[1761429858533,36.0,194.21,194.2,3.25956601]
[1761429862750,35.94,194.25,194.2,8.40887247]
[1761429863042,35.94,194.25,194.23,2.54956601]
[1761429863435,35.94,194.25,194.24,0.71]
[1761429865531,35.94,194.25,194.21,0.71]
[1761429865731,35.94,194.25,194.2,7.69870191]
[1761429865954,35.94,194.25,194.21,0.71]
[1761429866945,35.94,194.25,194.22,5.14880032]
[1761429867147,35.94,194.25,194.22,7.69836633]
[1761429867353,35.94,194.25,194.23,0.71]
[1761429869155,35.94,194.25,194.23,5.85843867]
[1761429871952,35.94,194.25,194.24,3.25956601]
[1761429872257,2.68712314,194.29,194.24,3.25956601]
[1761429872477,35.9,194.27,194.25,3.25956601]
[1761429872645,35.9,194.27,194.26,2.54956601]
[1761429872846,38.60712314,194.29,194.26,3.25956601]
[1761429873038,38.60712314,194.29,194.27,0.71]
[1761429873239,38.60712314,194.29,194.26,7.69719187]
[1761429873468,38.60712314,194.29,194.26,8.40719187]
[1761429874555,38.60712314,194.29,194.26,0.71]
[1761429874746,0.69,194.28,194.25,5.14794805]
[1761429875459,2.54956601,194.27,194.22,0.71]
[1761429875755,38.44956601,194.26,194.22,5.85880032]
[1761429876146,35.9,194.26,194.22,5.85880032]